[Event "January 2 Late 2024"]
[Site "https://www.chess.com"]
[Date "2024.01.02"]
[Round "4"]
[White "Sanchez Alvares, Kelvin Antonio"]
[Black "yujiarun18"]
[Result "1-0"]
[Board "209"]
[TimeControl "180+1"]
[WhiteFideId "3906680"]
[WhiteElo "2420"]
[BlackElo "2167"]
[WhiteTeam "VEN"]
[WhiteClock "0:00:09"]
[BlackClock "0:00:04"]

1. e4 {[%clk 0:03:00]}  c5 {[%clk 0:02:58]} 2. Nf3 {[%clk 0:03:00]}  d6 {[%clk 0:02:58]} 3. d4 {[%clk 0:03:00]}  cxd4 {[%clk 0:02:58]} 4. Nxd4 {[%clk 0:03:00]}  Nf6 {[%clk 0:02:59]} 5. Nc3 {[%clk 0:03:00]}  a6 {[%clk 0:02:59]} 6. Be3 {[%clk 0:02:57]}  e5 {[%clk 0:02:59]} 7. Nb3 {[%clk 0:02:57]}  Be6 {[%clk 0:02:59]} 8. Qd2 {[%clk 0:02:44]}  Be7 {[%clk 0:02:58]} 9. O-O-O {[%clk 0:02:42]}  O-O {[%clk 0:02:51]} 10. f4 {[%clk 0:02:39]}  Ng4 {[%clk 0:01:39]} 11. Kb1 {[%clk 0:02:12]}  Nxe3 {[%clk 0:01:37]} 12. Qxe3 {[%clk 0:02:10]}  exf4 {[%clk 0:01:36]} 13. Qxf4 {[%clk 0:02:05]}  Nd7 {[%clk 0:01:36]} 14. Nd5 {[%clk 0:01:49]}  Bxd5 {[%clk 0:01:22]} 15. exd5 {[%clk 0:01:37]}  b5 {[%clk 0:01:19]} 16. Bd3 {[%clk 0:01:35]}  Ne5 {[%clk 0:01:17]} 17. Nd4 {[%clk 0:01:28]}  Rc8 {[%clk 0:01:09]} 18. h4 {[%clk 0:01:19]}  Bf6 {[%clk 0:01:01]} 19. g4 {[%clk 0:01:11]}  Nxd3 {[%clk 0:00:55]} 20. Rxd3 {[%clk 0:01:07]}  Bxh4 {[%clk 0:00:51]} 21. Rdh3 {[%clk 0:00:41]}  g5 {[%clk 0:00:49]} 22. Qf3 {[%clk 0:00:27]}  f5 {[%clk 0:00:40]} 23. Nxf5 {[%clk 0:00:18]}  Qc7 {[%clk 0:00:32]} 24. Qd3 {[%clk 0:00:15]}  Rf6 {[%clk 0:00:20]} 25. Nxh4 {[%clk 0:00:14]}  gxh4 {[%clk 0:00:20]} 26. Rxh4 {[%clk 0:00:15]}  h6 {[%clk 0:00:18]} 27. g5 {[%clk 0:00:14]}  Rf7 {[%clk 0:00:14]} 28. Rxh6 {[%clk 0:00:11]}  Rg7 {[%clk 0:00:13]} 29. Qf5 {[%clk 0:00:09]}  Qxc2+ {[%clk 0:00:03]} 30. Qxc2 {[%clk 0:00:07]}  Rxc2 {[%clk 0:00:03]} 31. Kxc2 {[%clk 0:00:08]}  Kf7 {[%clk 0:00:04]} 32. Rh7 {[%clk 0:00:07]}  Rxh7 {[%clk 0:00:04]} 33. Rxh7+ {[%clk 0:00:07]}  Kg6 {[%clk 0:00:05]} 34. Rh6+ {[%clk 0:00:07]}  Kxg5 {[%clk 0:00:06]} 35. Rxd6 {[%clk 0:00:08]}  Kf5 {[%clk 0:00:04]} 36. Rxa6 {[%clk 0:00:09]} 1-0

[Event "January 2 Late 2024"]
[Site "https://www.chess.com"]
[Date "2024.01.02"]
[Round "4"]
[White "Atanejhad, Sahebali"]
[Black "Ivanov, Aleksandr"]
[Result "0-1"]
[Board "211"]
[TimeControl "180+1"]
[WhiteFideId "12506664"]
[BlackFideId "2092980"]
[WhiteElo "2395"]
[BlackElo "2116"]
[WhiteTeam "IRI"]
[BlackTeam "USA"]
[WhiteClock "0:00:00"]
[BlackClock "0:01:28"]

1. d4 {[%clk 0:02:56]}  d5 {[%clk 0:02:59]} 2. c4 {[%clk 0:02:55]}  e6 {[%clk 0:02:59]} 3. Nc3 {[%clk 0:02:55]}  c6 {[%clk 0:02:59]} 4. e3 {[%clk 0:02:55]}  Nf6 {[%clk 0:02:57]} 5. Bd3 {[%clk 0:02:55]}  dxc4 {[%clk 0:02:56]} 6. Bxc4 {[%clk 0:02:56]}  b5 {[%clk 0:02:55]} 7. Bd3 {[%clk 0:02:55]}  a6 {[%clk 0:02:55]} 8. Nf3 {[%clk 0:02:56]}  Nbd7 {[%clk 0:02:55]} 9. O-O {[%clk 0:02:56]}  c5 {[%clk 0:02:55]} 10. Re1 {[%clk 0:02:53]}  Bb7 {[%clk 0:02:54]} 11. b3 {[%clk 0:02:52]}  Rc8 {[%clk 0:02:48]} 12. Bb2 {[%clk 0:02:50]}  Be7 {[%clk 0:02:44]} 13. Rc1 {[%clk 0:02:49]}  O-O {[%clk 0:02:43]} 14. Bb1 {[%clk 0:02:48]}  cxd4 {[%clk 0:02:34]} 15. exd4 {[%clk 0:02:48]}  Nd5 {[%clk 0:02:23]} 16. Ne4 {[%clk 0:02:44]}  h6 {[%clk 0:02:22]} 17. Ne5 {[%clk 0:02:42]}  N7f6 {[%clk 0:02:16]} 18. Nc5 {[%clk 0:02:40]}  Qb6 {[%clk 0:02:03]} 19. Ned7 {[%clk 0:00:00]}  Qa7 {[%clk 0:01:28]} 0-1

[Event "January 2 Late 2024"]
[Site "https://www.chess.com"]
[Date "2024.01.02"]
[Round "4"]
[White "Baules Rodriguez, Jorge Luis"]
[Black "Aung Thant Zin"]
[Result "1-0"]
[Board "213"]
[TimeControl "180+1"]
[WhiteFideId "6600247"]
[BlackFideId "13000063"]
[WhiteElo "2385"]
[BlackElo "2112"]
[WhiteTeam "PAN"]
[BlackTeam "MYA"]
[WhiteClock "0:01:28"]
[BlackClock "0:01:20"]

1. e4 {[%clk 0:03:00]}  c5 {[%clk 0:02:34]} 2. Nf3 {[%clk 0:03:00]}  Nc6 {[%clk 0:02:34]} 3. d4 {[%clk 0:03:00]}  cxd4 {[%clk 0:02:34]} 4. Nxd4 {[%clk 0:03:01]}  Nf6 {[%clk 0:02:35]} 5. Nc3 {[%clk 0:03:01]}  d6 {[%clk 0:02:35]} 6. Bg5 {[%clk 0:03:00]}  e6 {[%clk 0:02:35]} 7. Qd2 {[%clk 0:03:00]}  a6 {[%clk 0:02:35]} 8. O-O-O {[%clk 0:03:00]}  h6 {[%clk 0:02:35]} 9. Bh4 {[%clk 0:02:52]}  Nxe4 {[%clk 0:02:33]} 10. Nxe4 {[%clk 0:02:43]}  Qxh4 {[%clk 0:02:32]} 11. Nxc6 {[%clk 0:02:27]}  Qxe4 {[%clk 0:02:31]} 12. Nd4 {[%clk 0:02:23]}  Qd5 {[%clk 0:02:21]} 13. Kb1 {[%clk 0:02:22]}  Qc5 {[%clk 0:02:16]} 14. f4 {[%clk 0:02:11]}  Be7 {[%clk 0:02:15]} 15. Bd3 {[%clk 0:02:09]}  O-O {[%clk 0:02:11]} 16. g4 {[%clk 0:02:06]}  e5 {[%clk 0:01:54]} 17. Nb3 {[%clk 0:02:02]}  Qc7 {[%clk 0:01:53]} 18. g5 {[%clk 0:01:58]}  hxg5 {[%clk 0:01:49]} 19. fxg5 {[%clk 0:01:57]}  d5 {[%clk 0:01:47]} 20. g6 {[%clk 0:01:57]}  f5 {[%clk 0:01:44]} 21. Qe2 {[%clk 0:01:29]}  e4 {[%clk 0:01:20]} 22. Qh5 {[%clk 0:01:28]} 1-0

[Event "January 2 Late 2024"]
[Site "https://www.chess.com"]
[Date "2024.01.02"]
[Round "4"]
[White "Kubatko, Ivan"]
[Black "Gardezi, Arsal"]
[Result "0-1"]
[Board "214"]
[TimeControl "180+1"]
[WhiteFideId "24111473"]
[BlackFideId "30949521"]
[WhiteElo "2364"]
[BlackElo "2112"]
[WhiteTeam "RUS"]
[BlackTeam "USA"]
[WhiteClock "0:00:00"]
[BlackClock "0:00:20"]

1. c4 {[%clk 0:02:59]}  Nf6 {[%clk 0:02:47]} 2. Nc3 {[%clk 0:02:57]}  e6 {[%clk 0:02:48]} 3. d4 {[%clk 0:02:55]}  d5 {[%clk 0:02:46]} 4. Nf3 {[%clk 0:02:50]}  b6 {[%clk 0:02:43]} 5. Bf4 {[%clk 0:02:46]}  Bd6 {[%clk 0:02:40]} 6. Ne5 {[%clk 0:02:37]}  Bb7 {[%clk 0:02:38]} 7. e3 {[%clk 0:02:36]}  Nbd7 {[%clk 0:02:33]} 8. cxd5 {[%clk 0:02:25]}  exd5 {[%clk 0:02:02]} 9. Bd3 {[%clk 0:02:20]}  Qe7 {[%clk 0:01:56]} 10. Nxd7 {[%clk 0:02:12]}  Nxd7 {[%clk 0:01:53]} 11. Bxd6 {[%clk 0:02:10]}  Qxd6 {[%clk 0:01:54]} 12. O-O {[%clk 0:02:08]}  a6 {[%clk 0:01:52]} 13. e4 {[%clk 0:01:38]}  O-O {[%clk 0:01:48]} 14. e5 {[%clk 0:01:23]}  Qh6 {[%clk 0:01:40]} 15. Qf3 {[%clk 0:01:14]}  c5 {[%clk 0:01:22]} 16. Nxd5 {[%clk 0:01:11]}  Kh8 {[%clk 0:01:06]} 17. Be4 {[%clk 0:00:59]}  cxd4 {[%clk 0:01:02]} 18. Qg3 {[%clk 0:00:30]}  Rad8 {[%clk 0:00:20]} 19. Rfe1 {[%clk 0:00:17]}  Nc5 {[%clk 0:00:20]} 20. e6 {[%clk 0:00:03]}  fxe6 {[%clk 0:00:20]} 21. Nf4 {[%clk 0:00:02]}  Nxe4 {[%clk 0:00:20]} 22. Rxe4 {[%clk 0:00:01]}  Bxe4 {[%clk 0:00:19]} 23. Re1 {[%clk 0:00:02]}  Qxf4 {[%clk 0:00:19]} 24. Qxf4 {[%clk 0:00:01]}  Rxf4 {[%clk 0:00:20]} 25. f3 {[%clk 0:00:00]}  Bd5 {[%clk 0:00:20]} 0-1

[Event "January 2 Late 2024"]
[Site "https://www.chess.com"]
[Date "2024.01.02"]
[Round "4"]
[White "Brandao, Marcius Gomes"]
[Black "Mesa Cruz, Juan Carlos"]
[Result "0-1"]
[Board "216"]
[TimeControl "180+1"]
[WhiteFideId "2124980"]
[BlackFideId "6423400"]
[WhiteElo "2073"]
[BlackElo "2287"]
[WhiteTeam "BRA"]
[BlackTeam "DOM"]
[WhiteClock "0:00:44"]
[BlackClock "0:01:02"]

1. d4 {[%clk 0:03:00]}  Nf6 {[%clk 0:02:54]} 2. c4 {[%clk 0:02:59]}  e6 {[%clk 0:02:46]} 3. Nc3 {[%clk 0:02:59]}  Bb4 {[%clk 0:02:39]} 4. f3 {[%clk 0:02:58]}  c5 {[%clk 0:02:04]} 5. d5 {[%clk 0:02:56]}  b5 {[%clk 0:02:04]} 6. e4 {[%clk 0:02:53]}  bxc4 {[%clk 0:02:02]} 7. Bxc4 {[%clk 0:02:50]}  d6 {[%clk 0:02:01]} 8. Ne2 {[%clk 0:02:43]}  O-O {[%clk 0:01:59]} 9. O-O {[%clk 0:02:31]}  Ba6 {[%clk 0:01:59]} 10. Bxa6 {[%clk 0:02:15]}  Nxa6 {[%clk 0:02:00]} 11. a3 {[%clk 0:02:15]}  Ba5 {[%clk 0:01:49]} 12. Bg5 {[%clk 0:02:13]}  h6 {[%clk 0:01:47]} 13. Bh4 {[%clk 0:02:07]}  c4 {[%clk 0:01:46]} 14. dxe6 {[%clk 0:01:56]}  fxe6 {[%clk 0:01:45]} 15. Nf4 {[%clk 0:01:35]}  Nc5 {[%clk 0:01:18]} 16. Bxf6 {[%clk 0:00:58]}  Qxf6 {[%clk 0:01:03]} 17. Qxd6 {[%clk 0:00:49]}  Qxf4 {[%clk 0:01:02]} 18. Qxc5 {[%clk 0:00:44]}  Bb6 {[%clk 0:01:02]} 0-1

[Event "January 2 Late 2024"]
[Site "https://www.chess.com"]
[Date "2024.01.02"]
[Round "4"]
[White "De Souza, Arthur Olintho"]
[Black "Skaric, Djuro"]
[Result "0-1"]
[Board "217"]
[TimeControl "180+1"]
[WhiteFideId "2116200"]
[BlackFideId "934569"]
[WhiteElo "2072"]
[BlackElo "2286"]
[WhiteTeam "BRA"]
[BlackTeam "SRB"]
[WhiteClock "0:01:03"]
[BlackClock "0:02:11"]

1. e4 {[%clk 0:02:56]}  d6 {[%clk 0:02:58]} 2. d4 {[%clk 0:02:51]}  g6 {[%clk 0:02:58]} 3. Nc3 {[%clk 0:02:50]}  Bg7 {[%clk 0:02:59]} 4. h3 {[%clk 0:02:50]}  Nf6 {[%clk 0:02:59]} 5. Nge2 {[%clk 0:02:51]}  O-O {[%clk 0:03:00]} 6. Be3 {[%clk 0:02:49]}  Nc6 {[%clk 0:03:01]} 7. g4 {[%clk 0:02:49]}  e5 {[%clk 0:03:01]} 8. Bg2 {[%clk 0:02:49]}  Nd7 {[%clk 0:02:57]} 9. O-O {[%clk 0:02:47]}  Nb6 {[%clk 0:02:53]} 10. b3 {[%clk 0:02:44]}  f5 {[%clk 0:02:46]} 11. exf5 {[%clk 0:02:41]}  gxf5 {[%clk 0:02:45]} 12. dxe5 {[%clk 0:02:37]}  Nxe5 {[%clk 0:02:45]} 13. f4 {[%clk 0:02:36]}  Ng6 {[%clk 0:02:45]} 14. Nd4 {[%clk 0:02:17]}  fxg4 {[%clk 0:02:43]} 15. hxg4 {[%clk 0:02:16]}  Qh4 {[%clk 0:02:33]} 16. f5 {[%clk 0:02:15]}  Ne5 {[%clk 0:02:32]} 17. Rf4 {[%clk 0:01:42]}  Bh6 {[%clk 0:02:16]} 18. g5 {[%clk 0:01:31]}  Qxg5 {[%clk 0:02:14]} 19. Ne6 {[%clk 0:01:18]}  Bxe6 {[%clk 0:02:12]} 20. fxe6 {[%clk 0:01:03]}  Rxf4 {[%clk 0:02:11]} 0-1

[Event "January 2 Late 2024"]
[Site "https://www.chess.com"]
[Date "2024.01.02"]
[Round "4"]
[White "Vujcic, Milena"]
[Black "Lalanne, Pablo"]
[Result "0-1"]
[Board "218"]
[TimeControl "180+1"]
[WhiteFideId "954748"]
[BlackFideId "112151"]
[WhiteElo "2027"]
[BlackElo "2286"]
[WhiteTeam "SRB"]
[BlackTeam "ARG"]
[WhiteClock "0:00:00"]
[BlackClock "0:00:13"]

1. e4 {[%clk 0:03:00]}  c5 {[%clk 0:02:57]} 2. Nf3 {[%clk 0:02:53]}  d6 {[%clk 0:02:57]} 3. d4 {[%clk 0:02:53]}  cxd4 {[%clk 0:02:58]} 4. Nxd4 {[%clk 0:02:53]}  Nf6 {[%clk 0:02:58]} 5. Nc3 {[%clk 0:02:53]}  a6 {[%clk 0:02:59]} 6. Bg5 {[%clk 0:02:54]}  e6 {[%clk 0:02:59]} 7. f4 {[%clk 0:02:52]}  Nbd7 {[%clk 0:02:59]} 8. Qf3 {[%clk 0:02:51]}  Qc7 {[%clk 0:02:59]} 9. O-O-O {[%clk 0:02:51]}  b5 {[%clk 0:02:59]} 10. g4 {[%clk 0:02:51]}  Bb7 {[%clk 0:02:58]} 11. Bxf6 {[%clk 0:02:51]}  Nxf6 {[%clk 0:02:48]} 12. g5 {[%clk 0:02:50]}  b4 {[%clk 0:02:33]} 13. Ncb5 {[%clk 0:02:02]}  axb5 {[%clk 0:02:32]} 14. Nxb5 {[%clk 0:02:02]}  Qc6 {[%clk 0:02:06]} 15. gxf6 {[%clk 0:02:00]}  Rxa2 {[%clk 0:01:59]} 16. Kb1 {[%clk 0:01:54]}  Ra5 {[%clk 0:01:59]} 17. Nd4 {[%clk 0:01:50]}  Qxe4 {[%clk 0:01:54]} 18. Qg3 {[%clk 0:01:26]}  gxf6 {[%clk 0:01:36]} 19. Rg1 {[%clk 0:01:21]}  Qd5 {[%clk 0:01:19]} 20. Bg2 {[%clk 0:00:32]}  Qa2+ {[%clk 0:01:17]} 21. Kc1 {[%clk 0:00:32]}  Qa1+ {[%clk 0:00:53]} 22. Kd2 {[%clk 0:00:31]}  Qxb2 {[%clk 0:00:54]} 23. Nb3 {[%clk 0:00:26]}  Rd5+ {[%clk 0:00:40]} 24. Bxd5 {[%clk 0:00:25]}  Bxd5 {[%clk 0:00:41]} 25. Ra1 {[%clk 0:00:20]}  Bh6 {[%clk 0:00:24]} 26. Qe3 {[%clk 0:00:14]}  e5 {[%clk 0:00:22]} 27. Rgf1 {[%clk 0:00:07]}  Qc3+ {[%clk 0:00:17]} 28. Qxc3 {[%clk 0:00:07]}  bxc3+ {[%clk 0:00:18]} 29. Kxc3 {[%clk 0:00:07]}  Bxf4 {[%clk 0:00:19]} 30. Nd2 {[%clk 0:00:06]}  Rg8 {[%clk 0:00:18]} 31. Nc4 {[%clk 0:00:06]}  Kd7 {[%clk 0:00:16]} 32. Nb6+ {[%clk 0:00:06]}  Ke6 {[%clk 0:00:16]} 33. Nxd5 {[%clk 0:00:06]}  Kxd5 {[%clk 0:00:17]} 34. Ra5+ {[%clk 0:00:06]}  Ke6 {[%clk 0:00:17]} 35. Ra4 {[%clk 0:00:05]}  Rc8+ {[%clk 0:00:16]} 36. Kd3 {[%clk 0:00:05]}  f5 {[%clk 0:00:17]} 37. Ra6 {[%clk 0:00:05]}  Bg5 {[%clk 0:00:15]} 38. Rg1 {[%clk 0:00:04]}  e4+ {[%clk 0:00:15]} 39. Kd4 {[%clk 0:00:05]}  Bf6+ {[%clk 0:00:15]} 40. Ke3 {[%clk 0:00:05]}  Be5 {[%clk 0:00:15]} 41. Rg2 {[%clk 0:00:04]}  Rc3+ {[%clk 0:00:15]} 42. Kd2 {[%clk 0:00:04]}  Rh3 {[%clk 0:00:14]} 43. Ra8 {[%clk 0:00:03]}  Bxh2 {[%clk 0:00:12]} 44. Re8+ {[%clk 0:00:02]}  Kd7 {[%clk 0:00:12]} 45. Rh8 {[%clk 0:00:02]}  Bf4+ {[%clk 0:00:12]} 46. Ke2 {[%clk 0:00:01]}  d5 {[%clk 0:00:13]} 47. Rhg8 {[%clk 0:00:01]}  d4 {[%clk 0:00:13]} 48. R8g7 {[%clk 0:00:00]}  Ke6 {[%clk 0:00:13]} 0-1

[Event "January 2 Late 2024"]
[Site "https://www.chess.com"]
[Date "2024.01.02"]
[Round "4"]
[White "Oliveira, Tiago Batista"]
[Black "Gonzalez Zharikov, Andrey"]
[Result "0-1"]
[Board "219"]
[TimeControl "180+1"]
[WhiteFideId "2108291"]
[BlackFideId "5145287"]
[WhiteElo "2023"]
[BlackElo "2284"]
[WhiteTeam "BRA"]
[BlackTeam "MEX"]
[WhiteClock "0:00:09"]
[BlackClock "0:02:08"]

1. d4 {[%clk 0:03:00]}  Nf6 {[%clk 0:02:58]} 2. c4 {[%clk 0:02:59]}  e6 {[%clk 0:02:59]} 3. Nf3 {[%clk 0:02:57]}  d5 {[%clk 0:02:59]} 4. g3 {[%clk 0:02:57]}  Be7 {[%clk 0:02:59]} 5. Bg2 {[%clk 0:02:57]}  O-O {[%clk 0:03:00]} 6. O-O {[%clk 0:02:57]}  dxc4 {[%clk 0:03:01]} 7. Ne5 {[%clk 0:02:53]}  c5 {[%clk 0:03:00]} 8. dxc5 {[%clk 0:02:40]}  Bxc5 {[%clk 0:02:58]} 9. Bg5 {[%clk 0:01:58]}  h6 {[%clk 0:02:50]} 10. Qxd8 {[%clk 0:01:56]}  Rxd8 {[%clk 0:02:48]} 11. Bxf6 {[%clk 0:01:56]}  gxf6 {[%clk 0:02:48]} 12. Nxc4 {[%clk 0:01:55]}  e5 {[%clk 0:02:45]} 13. Nc3 {[%clk 0:01:49]}  Nc6 {[%clk 0:02:45]} 14. Rac1 {[%clk 0:01:45]}  Be6 {[%clk 0:02:43]} 15. Ne4 {[%clk 0:01:44]}  Be7 {[%clk 0:02:42]} 16. Ne3 {[%clk 0:01:03]}  Rac8 {[%clk 0:02:36]} 17. Nc5 {[%clk 0:00:59]}  Bxc5 {[%clk 0:02:28]} 18. Rxc5 {[%clk 0:00:58]}  Nd4 {[%clk 0:02:27]} 19. Rxc8 {[%clk 0:00:56]}  Rxc8 {[%clk 0:02:27]} 20. Re1 {[%clk 0:00:53]}  b6 {[%clk 0:02:24]} 21. b3 {[%clk 0:00:53]}  a5 {[%clk 0:02:21]} 22. Bb7 {[%clk 0:00:49]}  Rc7 {[%clk 0:02:20]} 23. Bd5 {[%clk 0:00:44]}  Kf8 {[%clk 0:02:20]} 24. Bxe6 {[%clk 0:00:32]}  fxe6 {[%clk 0:02:20]} 25. Nc4 {[%clk 0:00:32]}  Rc6 {[%clk 0:02:18]} 26. Kg2 {[%clk 0:00:24]}  Ke7 {[%clk 0:02:17]} 27. e3 {[%clk 0:00:23]}  Nc2 {[%clk 0:02:17]} 28. Rd1 {[%clk 0:00:22]}  Nb4 {[%clk 0:02:16]} 29. a3 {[%clk 0:00:20]}  Nd5 {[%clk 0:02:16]} 30. e4 {[%clk 0:00:15]}  Nc7 {[%clk 0:02:16]} 31. Kf3 {[%clk 0:00:14]}  a4 {[%clk 0:02:16]} 32. Nd2 {[%clk 0:00:11]}  Nb5 {[%clk 0:02:09]} 33. bxa4 {[%clk 0:00:10]}  Nxa3 {[%clk 0:02:09]} 34. Ra1 {[%clk 0:00:09]}  Nc2 {[%clk 0:02:09]} 35. Ra2 {[%clk 0:00:09]}  Nd4+ {[%clk 0:02:09]} 36. Ke3 {[%clk 0:00:09]}  Rc3# {[%clk 0:02:08]} 0-1

[Event "January 2 Late 2024"]
[Site "https://www.chess.com"]
[Date "2024.01.02"]
[Round "4"]
[White "Smirnov, Timofey"]
[Black "Minina, Veronika"]
[Result "0-1"]
[Board "221"]
[TimeControl "180+1"]
[WhiteFideId "24176427"]
[BlackFideId "4174780"]
[WhiteElo "1983"]
[BlackElo "2277"]
[WhiteTeam "RUS"]
[BlackTeam "RUS"]
[WhiteClock "0:00:00"]
[BlackClock "0:00:44"]

1. d4 {[%clk 0:03:00]}  Nf6 {[%clk 0:02:54]} 2. Bf4 {[%clk 0:02:59]}  g6 {[%clk 0:02:53]} 3. Nc3 {[%clk 0:02:57]}  Bg7 {[%clk 0:02:54]} 4. e4 {[%clk 0:02:57]}  O-O {[%clk 0:02:52]} 5. e5 {[%clk 0:02:57]}  Ne8 {[%clk 0:02:52]} 6. h4 {[%clk 0:02:50]}  d6 {[%clk 0:02:48]} 7. Nf3 {[%clk 0:02:40]}  dxe5 {[%clk 0:02:44]} 8. Bxe5 {[%clk 0:02:37]}  Nc6 {[%clk 0:02:30]} 9. Bxg7 {[%clk 0:02:36]}  Nxg7 {[%clk 0:02:30]} 10. Qd2 {[%clk 0:02:03]}  Bg4 {[%clk 0:02:29]} 11. O-O-O {[%clk 0:01:49]}  Bxf3 {[%clk 0:02:22]} 12. gxf3 {[%clk 0:01:50]}  Qd7 {[%clk 0:02:08]} 13. Bb5 {[%clk 0:01:47]}  Qf5 {[%clk 0:02:01]} 14. Qe3 {[%clk 0:01:35]}  Nb4 {[%clk 0:01:50]} 15. Bd3 {[%clk 0:01:14]}  Nxd3+ {[%clk 0:01:49]} 16. Rxd3 {[%clk 0:01:15]}  Ne6 {[%clk 0:01:23]} 17. h5 {[%clk 0:01:01]}  Nf4 {[%clk 0:01:11]} 18. Rdd1 {[%clk 0:00:45]}  e6 {[%clk 0:01:05]} 19. hxg6 {[%clk 0:00:40]}  fxg6 {[%clk 0:01:05]} 20. Nb5 {[%clk 0:00:16]}  Rf7 {[%clk 0:01:04]} 21. Nc3 {[%clk 0:00:15]}  Raf8 {[%clk 0:01:03]} 22. d5 {[%clk 0:00:12]}  exd5 {[%clk 0:01:02]} 23. Qe1 {[%clk 0:00:07]}  c5 {[%clk 0:00:58]} 24. Qg1 {[%clk 0:00:06]}  d4 {[%clk 0:00:56]} 25. Qh2 {[%clk 0:00:06]}  dxc3 {[%clk 0:00:53]} 26. b3 {[%clk 0:00:05]}  c4 {[%clk 0:00:48]} 27. Rde1 {[%clk 0:00:02]}  cxb3 {[%clk 0:00:45]} 28. axb3 {[%clk 0:00:00]}  Qa5 {[%clk 0:00:44]} 0-1

[Event "January 2 Late 2024"]
[Site "https://www.chess.com"]
[Date "2024.01.02"]
[Round "4"]
[White "Anna20240"]
[Black "Nithyalakshmi, Sivanesan"]
[Result "1/2-1/2"]
[Board "222"]
[TimeControl "180+1"]
[BlackFideId "5706955"]
[WhiteElo "1712"]
[BlackElo "2269"]
[BlackTeam "MAS"]
[WhiteClock "0:00:08"]
[BlackClock "0:00:01"]

1. d4 {[%clk 0:03:00]}  Nf6 {[%clk 0:02:56]} 2. c4 {[%clk 0:03:00]}  g6 {[%clk 0:02:55]} 3. Nf3 {[%clk 0:03:00]}  Bg7 {[%clk 0:02:54]} 4. g3 {[%clk 0:02:59]}  d6 {[%clk 0:02:52]} 5. Bg2 {[%clk 0:02:59]}  O-O {[%clk 0:02:51]} 6. O-O {[%clk 0:02:58]}  Nc6 {[%clk 0:02:49]} 7. Nc3 {[%clk 0:02:58]}  a6 {[%clk 0:02:46]} 8. e4 {[%clk 0:02:59]}  e5 {[%clk 0:02:32]} 9. d5 {[%clk 0:02:57]}  Na5 {[%clk 0:02:28]} 10. Qa4 {[%clk 0:02:41]}  c5 {[%clk 0:02:19]} 11. b4 {[%clk 0:02:27]}  cxb4 {[%clk 0:02:03]} 12. Qxb4 {[%clk 0:02:24]}  Bg4 {[%clk 0:01:59]} 13. Be3 {[%clk 0:02:23]}  Nd7 {[%clk 0:01:34]} 14. Na4 {[%clk 0:02:08]}  Rc8 {[%clk 0:01:29]} 15. Nb6 {[%clk 0:02:03]}  Nxb6 {[%clk 0:00:48]} 16. Bxb6 {[%clk 0:02:00]}  Rxc4 {[%clk 0:00:33]} 17. Qxa5 {[%clk 0:01:56]}  Qc8 {[%clk 0:00:32]} 18. Be3 {[%clk 0:01:47]}  Rxe4 {[%clk 0:00:25]} 19. Rfc1 {[%clk 0:01:46]}  Qb8 {[%clk 0:00:16]} 20. Nh4 {[%clk 0:01:40]}  Rxe3 {[%clk 0:00:09]} 21. fxe3 {[%clk 0:01:40]}  e4 {[%clk 0:00:09]} 22. Rab1 {[%clk 0:01:35]}  f5 {[%clk 0:00:09]} 23. Qb6 {[%clk 0:01:29]}  Be5 {[%clk 0:00:08]} 24. Qxb7 {[%clk 0:01:27]}  Qd8 {[%clk 0:00:06]} 25. Rc7 {[%clk 0:01:18]}  Qg5 {[%clk 0:00:06]} 26. Re1 {[%clk 0:01:05]}  h5 {[%clk 0:00:05]} 27. Rc8 {[%clk 0:00:59]}  Bg7 {[%clk 0:00:02]} 28. Rxf8+ {[%clk 0:00:56]}  Bxf8 {[%clk 0:00:03]} 29. Qxa6 {[%clk 0:00:50]}  Qf6 {[%clk 0:00:03]} 30. h3 {[%clk 0:00:34]}  g5 {[%clk 0:00:03]} 31. hxg4 {[%clk 0:00:33]}  gxh4 {[%clk 0:00:03]} 32. gxf5 {[%clk 0:00:29]}  hxg3 {[%clk 0:00:01]} 33. Bh1 {[%clk 0:00:18]}  Qh4 {[%clk 0:00:02]} 34. Re2 {[%clk 0:00:18]}  Qg4 {[%clk 0:00:01]} 35. Rg2 {[%clk 0:00:18]}  h4 {[%clk 0:00:01]} 36. Qe2 {[%clk 0:00:17]}  Qxf5 {[%clk 0:00:01]} 37. Qf1 {[%clk 0:00:08]}  Qe5 {[%clk 0:00:01]} 38. Qf4 {[%clk 0:00:08]}  Qa1+ {[%clk 0:00:01]} 39. Qf1 {[%clk 0:00:08]}  Qe5 {[%clk 0:00:01]} 40. Qf4 {[%clk 0:00:07]}  Qa1+ {[%clk 0:00:01]} 41. Qf1 {[%clk 0:00:08]}  Qe5 {[%clk 0:00:01]} 1/2-1/2

[Event "January 2 Late 2024"]
[Site "https://www.chess.com"]
[Date "2024.01.02"]
[Round "4"]
[White "Harish, Neeraj"]
[Black "Vargas, Mauricio"]
[Result "1-0"]
[Board "224"]
[TimeControl "180+1"]
[WhiteFideId "30958130"]
[BlackFideId "4404572"]
[WhiteElo "2261"]
[BlackElo "1837"]
[WhiteTeam "USA"]
[BlackTeam "COL"]
[WhiteClock "0:00:59"]
[BlackClock "0:01:19"]

1. e4 {[%clk 0:03:00]}  d5 {[%clk 0:02:54]} 2. exd5 {[%clk 0:02:55]}  Qxd5 {[%clk 0:02:55]} 3. Nc3 {[%clk 0:02:54]}  Qa5 {[%clk 0:02:56]} 4. d4 {[%clk 0:02:54]}  c6 {[%clk 0:02:56]} 5. Nf3 {[%clk 0:02:53]}  Bg4 {[%clk 0:02:56]} 6. Be2 {[%clk 0:02:44]}  Nf6 {[%clk 0:02:56]} 7. h3 {[%clk 0:02:43]}  Bf5 {[%clk 0:02:55]} 8. g4 {[%clk 0:02:43]}  Bg6 {[%clk 0:02:51]} 9. Ne5 {[%clk 0:02:43]}  Nbd7 {[%clk 0:02:50]} 10. Bf4 {[%clk 0:02:36]}  e6 {[%clk 0:02:45]} 11. h4 {[%clk 0:02:34]}  Be4 {[%clk 0:02:42]} 12. f3 {[%clk 0:02:33]}  Bd5 {[%clk 0:02:41]} 13. Kf2 {[%clk 0:02:27]}  Nxe5 {[%clk 0:02:19]} 14. Bxe5 {[%clk 0:02:22]}  Nxg4+ {[%clk 0:02:13]} 15. fxg4 {[%clk 0:02:19]}  Bxh1 {[%clk 0:02:12]} 16. Qxh1 {[%clk 0:02:20]}  f6 {[%clk 0:02:12]} 17. Bf4 {[%clk 0:02:15]}  Qb4 {[%clk 0:02:10]} 18. Qe4 {[%clk 0:02:11]}  Qe7 {[%clk 0:01:46]} 19. Bc4 {[%clk 0:02:02]}  Kf7 {[%clk 0:01:46]} 20. Re1 {[%clk 0:02:00]}  f5 {[%clk 0:01:34]} 21. Bxe6+ {[%clk 0:01:52]}  Ke8 {[%clk 0:01:29]} 22. Qxf5 {[%clk 0:01:50]}  Qxh4+ {[%clk 0:01:26]} 23. Bg3 {[%clk 0:01:50]}  Qf6 {[%clk 0:01:25]} 24. Bd7+ {[%clk 0:01:05]}  Kd8 {[%clk 0:01:19]} 25. Re8# {[%clk 0:00:59]} 1-0